Workbook

Sheet MSU
B1: Ville Lantiainen | E1: 29.3.1993 Juva
B2: SUPERPESIS | E2: Runkosarja | I2: Kärkilyönnit (KL), pesänvälit | P2: Runkosarja TOP-30 | U2: Alempi loppusarja | AB2: Ylempi loppusarja TOP-10 | AG2: Play off, voitot, voittoprosentti | AL2: Arvo-ottelut | AO2: Mitalit
B3: Vuosi | C3: Sija | D3: Seura | E3: OTT | F3: KUN | G3: LÖI | H3: TOI | I3: KL | J3: 0 > 1 | K3: 1 > 2 | L3: 2 > 3 | M3: 3 > k | N3: KL-% | P3: LÖI | Q3: TOI | R3: L+T | S3: KL | U3: OTT | V3: KUN | W3: LÖI | X3: TOI | Y3: KL | Z3: KL-% | AB3: LÖI | AC3: TOI | AD3: L+T | AE3: KL | AG3: Puolivälierät | AH3: Välierät | AI3: Pronssi | AJ3: Finaalit | AL3: IL | AM3: LL | AN3: hSM | AO3: K | AP3: H | AQ3: P
B4: 2009 | C4: 7. | D4: JuNu | F4: suomensarja
B5: 2010 | C5: 8. | D5: JuNu | F5: suomensarja
B6: 2011 | C6: 7. | D6: JuNu | F6: suomensarja
B7: 2012 | C7: 8. | D7: JuNu | F7: suomensarja
B8: 2012 | C8: 12. | D8: IPV | F8: ykköspesis
B9: 2013 | C9: 5. | D9: IPV | F9: ykköspesis
B10: 2014 | C10: 1. | D10: IPV | F10: ykköspesis
B11: 2015 | C11: 4. | D11: IPV | F11: ykköspesis
B12: 2016 | C12: 1. | D12: IPV | F12: ykköspesis
B13: 2017 | C13: 9. | D13: IPV | E13: 30 | F13: 4 | G13: 2 | H13: 25 | I13: 102 | J13: 63 | K13: 19 | L13: 14 | M13: 6 | N13: 52.8 % | O13: 193
B14: 2018 | C14: 9. | D14: IPV | E14: 32 | F14: 3 | G14: 2 | H14: 21 | I14: 100 | J14: 73 | K14: 13 | L14: 9 | M14: 5 | N14: 54.1 % | O14: 185
B15: 2019 | C15: 4. | D15: HP | F15: ykköspesis
B16: 2020 | C16: 14. | D16: SiiPe | E16: 24 | F16: 0 | G16: 0 | H16: 25 | I16: 101 | J16: 98 | K16: 3 | L16: 0 | M16: 0 | N16: 63.5 % | O16: 159 | Q16: 27.
B17: 2021 | C17: 14. | D17: SiiPe | E17: 24 | F17: 0 | G17: 3 | H17: 25 | I17: 124 | J17: 29 | K17: 86 | L17: 6 | M17: 3 | N17: 67.8 % | O17: 183 | S17: 30.
B18: 2022 | C18: 3. | D18: JoMa | E18: 20 | F18: 0 | G18: 2 | H18: 6 | I18: 50 | J18: 22 | K18: 20 | L18: 6 | M18: 2 | N18: 46.7 % | O18: 107
B19: Yhteensä | E19: =SUM(E4:E18) -> 130 | F19: =SUM(F4:F18) -> 7 | G19: 9 | H19: 102 | I19: 477 | J19: 285 | K19: 141 | L19: 35 | M19: 16 | N19: =PRODUCT(I19/O19) -> 57.7 % | O19: =SUM(O3:O18) -> 827 | P19: 0-0-0 | Q19: 0-0-0 | R19: 0-0-0 | S19: 0-0-0 | U19: =SUM(U4:U18) -> 0 | V19: 0 | W19: 0 | X19: 0 | Y19: 0 | Z19: 0.0 % | AB19: 0-0-0 | AC19: 0-0-0 | AD19: 0-0-0 | AE19: 0-0-0 | AG19: 0/0 | AH19: 0/0 | AI19: 0/0 | AJ19: 0/0 | AL19: =SUM(AL4:AL18) -> 0 | AM19: 0 | AN19: 0 | AO19: 0 | AP19: 0 | AQ19: 0
AG20: 0.0 % | AH20: 0.0 % | AI20: 0.0 % | AJ20: 0.0 %
B21: Pesispörssi | D21: =SUM(F19:H19)+((I19-F19-G19)/3)+(E19/3)+(AL19*25)+(AM19*25)+(AN19*10)+(AO19*25)+(AP19*20)+(AQ19*15) -> 315.0
B23: URA SUPERISSA | E23: OTT | F23: KUN | G23: LÖI | H23: TOI | I23: KL | K23: ka/L | L23: ka/T | M23: ka/KL | N23: KL-% | P23: ENSIMMÄISET RUNKOSARJASSA | AG23: ENSIMMÄISET PUDOTUSPELEISSÄ | AL23: YLEISÖ
B24: Runkosarja | E24: =PRODUCT(E19) -> 130 | F24: =PRODUCT(F19) -> 7 | G24: =PRODUCT(G19) -> 9 | H24: =PRODUCT(H19) -> 102 | I24: =PRODUCT(I19) -> 477 | K24: =PRODUCT((F24+G24)/E24) -> 0.12 | L24: =PRODUCT(H24/E24) -> 0.78 | M24: =PRODUCT(I24/E24) -> 3.67 | N24: =PRODUCT(N19) -> 57.7 % | O24: =PRODUCT(O19) -> 827 | P24: Ottelu | R24: 27.08. 2014 IPV - Kiri 0-1 (2-13, 5-5) | Z24: 1. ottelu | AC24: 21 v 4 kk 29 pv | AG24: Ottelu
B25: Ylempi loppusarja | P25: Lyöty | R25: 30.05. 2017 IPV - AA 2-1 (2-7, 6-4, 4-4, 2-0) | Z25: 10. ottelu | AC25: 24 v 2 kk 1 pv | AG25: Lyöty
B26: Alempi loppusarja | E26: 13 | F26: 1 | G26: 2 | H26: 11 | I26: 59 | K26: =PRODUCT((F26+G26)/E26) -> 0.23 | L26: =PRODUCT(H26/E26) -> 0.85 | M26: =PRODUCT(I26/E26) -> 4.54 | N26: =PRODUCT(I26/O26) -> 60.8 % | O26: 97 | P26: Tuotu | R26: 27.08. 2014 IPV - Kiri 0-1 (2-13, 5-5) | Z26: 1. ottelu | AC26: 21 v 4 kk 29 pv | AG26: Tuotu
B27: KAIKKI | E27: =SUM(E24:E26) -> 143 | F27: =SUM(F24:F26) -> 8 | G27: =SUM(G24:G26) -> 11 | H27: =SUM(H24:H26) -> 113 | I27: =SUM(I24:I26) -> 536 | K27: =PRODUCT((F27+G27)/E27) -> 0.13 | L27: =PRODUCT(H27/E27) -> 0.79 | M27: =PRODUCT(I27/E27) -> 3.75 | N27: =PRODUCT(I27/O27) -> 58.0 % | O27: =SUM(O24:O26) -> 924 | P27: Kunnari | R27: 16.07. 2017 Tahko - IPV 1-2 (5-6, 8-3, 1-5) | Z27: 52. ottelu | AC27: 21 v 4 kk 29 pv | AG27: Kunnari
O28: =SUM(O25:O27) -> 1021
B29: Seurat | D29: JuNu = Juvan Nuorisopesis (2002), kasvattajaseura
D30: IPV = Imatran Pallo-Veikot (1955)
D31: HP = Haminan Palloilijat (1928)
D32: SiiPe = Siilinjärven Pesis (1987)

Sheet MYP, MSS
B1: Ville Lantiainen | E1: 29.3.1993 Juva
B2: YKKÖSPESIS | E2: Runkosarja | L2: Runkosarja TOP-10 | Q2: Jatkosarjat | X2: SUOMENSARJA | AA2: Runkosarja | AH2: Runkosarja TOP-10 | AM2: Jatkosarjat
B3: Vuosi | C3: Sija | D3: Seura | E3: OTT | F3: KUN | G3: LÖI | H3: TOI | I3: KL | J3: KL-% | L3: LÖI | M3: TOI | N3: L+T | O3: KL | Q3: OTT | R3: KUN | S3: LÖI | T3: TOI | U3: KL | V3: KL-% | X3: Vuosi | Y3: Sija | Z3: Seura | AA3: OTT | AB3: KUN | AC3: LÖI | AD3: TOI | AE3: KL | AF3: KL-% | AH3: LÖI | AI3: TOI | AJ3: L+T | AK3: KL | AM3: OTT | AN3: KUN | AO3: LÖI | AP3: TOI | AQ3: KL | AR3: KL-%
X4: 2009 | Y4: 7. | Z4: JuNu | AA4: 2 | AB4: 0 | AC4: 0 | AD4: 0 | AE4: 1 | AF4: 12.5 % | AG4: 8
X5: 2010 | Y5: 8. | Z5: JuNu | AA5: 15 | AB5: 0 | AC5: 2 | AD5: 6 | AE5: 24 | AF5: 36.4 % | AG5: 66
X6: 2011 | Y6: 7. | Z6: JuNu | AA6: 15 | AB6: 0 | AC6: 4 | AD6: 24 | AE6: 71 | AF6: 62.8 % | AG6: 113 | AI6: 9.
B7: 2012 | C7: 12. | D7: IPV | E7: 17 | F7: 1 | G7: 4 | H7: 9 | I7: 52 | J7: 44.1 % | K7: 118 | X7: 2012 | Y7: 8. | Z7: JuNu | AA7: 2 | AB7: 0 | AC7: 0 | AD7: 0 | AE7: 5 | AF7: 55.6 % | AG7: 9
B8: 2013 | C8: 5. | D8: IPV | E8: 14 | F8: 0 | G8: 4 | H8: 5 | I8: 25 | J8: 32.9 % | K8: 76 | X8: 2013 | Y8: 8. | Z8: JuNu | AA8: 1 | AB8: 0 | AC8: 0 | AD8: 0 | AE8: 3 | AF8: 42.9 % | AG8: 7
B9: 2014 | C9: 1. | D9: IPV | E9: 20 | F9: 1 | G9: 2 | H9: 16 | I9: 75 | J9: 50.0 % | K9: 150 | Q9: 3 | R9: 0 | S9: 0 | T9: 3 | U9: 13 | V9: 65.0 % | W9: 20
B10: 2015 | C10: 4. | D10: IPV | E10: 24 | F10: 0 | G10: 1 | H10: 16 | I10: 86 | J10: 46.0 % | K10: 187 | Q10: 4 | R10: 0 | S10: 0 | T10: 2 | U10: 18 | V10: 36.0 % | W10: 50
B11: 2016 | C11: 1. | D11: IPV | E11: 24 | F11: 6 | G11: 4 | H11: 49 | I11: 127 | J11: 62.0 % | K11: 205 | M11: 2. | N11: 5. | O11: 7.
B13: 2019 | C13: 4. | D13: HP | E13: 24 | F13: 1 | G13: 4 | H13: 37 | I13: 107 | J13: 61.5 % | K13: 174 | M13: 6. | Q13: 4 | R13: 0 | S13: 0 | T13: 11 | U13: 18 | V13: 51.4 % | W13: 35
B14: YHTEENSÄ | E14: =SUM(E4:E13) -> 123 | F14: =SUM(F4:F13) -> 9 | G14: =SUM(G4:G13) -> 19 | H14: =SUM(H4:H13) -> 132 | I14: =SUM(I4:I13) -> 472 | J14: =PRODUCT(I14/K14) -> 51.9 % | K14: =SUM(K4:K13) -> 910 | Q14: =SUM(Q4:Q13) -> 11 | R14: =SUM(R4:R13) -> 0 | S14: =SUM(S4:S13) -> 0 | T14: =SUM(T4:T13) -> 16 | U14: =SUM(U4:U13) -> 49 | V14: =PRODUCT(U14/W14) -> 46.7 % | W14: =SUM(W4:W13) -> 105 | X14: YHTEENSÄ | AA14: =SUM(AA4:AA13) -> 35 | AB14: =SUM(AB4:AB13) -> 0 | AC14: =SUM(AC4:AC13) -> 6 | AD14: =SUM(AD4:AD13) -> 30 | AE14: =SUM(AE4:AE13) -> 104 | AF14: =PRODUCT(AE14/AG14) -> 51.2 % | AG14: =SUM(AG4:AG13) -> 203 | AM14: =SUM(AM4:AM13) -> 0 | AN14: =SUM(AN4:AN13) -> 0 | AO14: =SUM(AO4:AO13) -> 0 | AP14: =SUM(AP4:AP13) -> 0 | AQ14: =SUM(AQ4:AQ13) -> 0 | AR14: 0.0 % | AS14: =SUM(AS4:AS13) -> 0
B16: KAIKKI OTTELUT | E16: OTT | F16: KUN | G16: LÖI | H16: TOI | I16: KL | J16: KL-% | L16: ka/L | M16: ka/T | N16: ka/l+t | O16: ka/kl | R16: Seurat | T16: JuNu = Juvan Nuorisopesis (2002), kasvattajaseura
B17: SUPERPESIS | E17: 123 | F17: 8 | G17: 9 | H17: 107 | I17: 486 | J17: 59.5 % | K17: =PRODUCT(I17/J17) -> 816.8067227 | L17: =PRODUCT((F17+G17)/E17) -> 0.14 | M17: =PRODUCT(H17/E17) -> 0.87 | N17: =PRODUCT((F17+G17+H17)/E17) -> 1.01 | O17: =PRODUCT(I17/E17) -> 3.95 | T17: IPV = Imatran Pallo-Veikot (1955)
B18: YKKÖSPESIS | E18: =PRODUCT(E14+Q14) -> 134 | F18: =PRODUCT(F14+R14) -> 9 | G18: =PRODUCT(G14+S14) -> 19 | H18: =PRODUCT(H14+T14) -> 148 | I18: =PRODUCT(I14+U14) -> 521 | J18: =PRODUCT(I18/K18) -> 51.3 % | K18: =PRODUCT(K14+W14) -> 1015 | L18: =PRODUCT((F18+G18)/E18) -> 0.21 | M18: =PRODUCT(H18/E18) -> 1.10 | N18: =PRODUCT((F18+G18+H18)/E18) -> 1.31 | O18: =PRODUCT(I18/E18) -> 3.89 | T18: HP = Haminan Palloilijat (1928)
B19: SUOMENSARJA | E19: =PRODUCT(AA14+AM14) -> 35 | F19: =PRODUCT(AB14+AN14) -> 0 | G19: =PRODUCT(AC14+AO14) -> 6 | H19: =PRODUCT(AD14+AP14) -> 30 | I19: =PRODUCT(AE14+AQ14) -> 104 | J19: =PRODUCT(I19/K19) -> 51.2 % | K19: =PRODUCT(AG14+AS14) -> 203 | L19: =PRODUCT((F19+G19)/E19) -> 0.17 | M19: =PRODUCT(H19/E19) -> 0.86 | N19: =PRODUCT((F19+G19+H19)/E19) -> 1.03 | O19: =PRODUCT(I19/E19) -> 2.97 | T19: SiiPe = Siilinjärven Pesis (1987)
B20: YHTEENSÄ | E20: =SUM(E17:E19) -> 292 | F20: =SUM(F17:F19) -> 17 | G20: 34 | H20: 285 | I20: 1111 | J20: =PRODUCT(I20/K20) -> 54.6 % | K20: =SUM(K17:K19) -> 2034.806723 | L20: =PRODUCT((F20+G20)/E20) -> 0.17 | M20: =PRODUCT(H20/E20) -> 0.98 | N20: =PRODUCT((F20+G20+H20)/E20) -> 1.15 | O20: =PRODUCT(I20/E20) -> 3.80

Sheet Arvo-ottelut
B1: ITÄ - LÄNSI - KORTTI
B2: Ville Lantiainen | C2: 29.3.1993 Juva
B3: B-POJAT | C3: Itä - Länsi, tulos | D3: Joukkue | E3: Seura | G3: V | H3: T | I3: H | J3: Up. | K3: Lj. | L3: Palk. | M3: O | N3: K | O3: L | P3: T | Q3: KL | R3: 1 | S3: 2 | T3: 3 | U3: k | V3: KL-% | W3: Pelinjohtaja | X3: Yleisöä
B4: 24.07. 2011 Kouvola | C4: 1-0 (2-0, 1-1) | D4: Itä | E4: IPV | G4: 1 | J4: 1v | K4: 2 | M4: 1 | P4: 1 | Q4: 4/8 | R4: 2/4 | S4: 2/3 | T4: 0/1 | V4: 50.0 % | W4: Markku Kiiski | X4: 1149
B6: A-POJAT | C6: Itä - Länsi, tulos | D6: Joukkue | E6: Seura | G6: V | H6: T | I6: H | J6: Up. | K6: Lj. | L6: Palk. | M6: O | N6: K | O6: L | P6: T | Q6: KL | R6: 1 | S6: 2 | T6: 3 | U6: k | V6: KL-% | W6: Pelinjohtaja | X6: Yleisöä
B7: 20.07. 2012 Sotkamo | C7: 2-1 (0-2, 8-5, 1-0) | D7: Itä | E7: IPV | G7: 1 | K7: jok | M7: 1 | P7: 1 | Q7: 1/2 | R7: 1/2 | V7: 50.0 % | W7: Perttu Westersund | X7: 2420
B8: 18.07. 2014 Seinäjoki | C8: 2-1 (3-2, 1-2, 1-0) | D8: Itä | E8: IPV | G8: 1 | J8: s | K8: 5 | M8: 1 | Q8: 1/3 | R8: 1/2 | T8: 0/1 | V8: 33.3 % | W8: Tuomas Nissinen | X8: 1614
B9: Yhteensä | G9: 2 | M9: 2 | P9: 1 | Q9: 2/5 | R9: 2/4 | T9: 0/1 | V9: 40.0 %

Sheet Kärkilyönnit
B1: KÄRKILYÖNNIT RUNKOSARJASSA | V1: VUOSITTAISET SIJOITUKSET TOP - 30
G2: 0 > 1 | J2: 1 > 2 | M2: 2 > 3 | P2: 3 > k | S2: Yhteensä
B3: Vuosi | C3: Sija | D3: Seura | E3: OTT | F3: KL | G3: YHT | H3: % | I3: KL | J3: YHT | K3: % | L3: KL | M3: YHT | N3: % | O3: KL | P3: YHT | Q3: % | R3: KL | S3: YHT | T3: % | V3: Vuosi | W3: Sija | X3: Seura | Y3: 0 > 1 | Z3: 1 > 2 | AA3: 2 > 3 | AB3: 3 > k | AC3: KL
B4: 2017 | C4: 9. | D4: IPV | E4: 30 | F4: 63 | G4: 125 | H4: 50.4 % | I4: 19 | J4: 27 | K4: 70.4 % | L4: 14 | M4: 27 | N4: 51.9 % | O4: 6 | P4: 14 | Q4: 42.9 % | R4: 102 | S4: 193 | T4: 52.8 % | V4: 2017 | W4: 9. | X4: IPV | Y4: 22.
B5: 2018 | C5: 9. | D5: IPV | E5: 32 | F5: 73 | G5: 131 | H5: 55.7 % | I5: 13 | J5: 22 | K5: 59.1 % | L5: 9 | M5: 17 | N5: 52.9 % | O5: 5 | P5: 15 | Q5: 33.3 % | R5: 100 | S5: 185 | T5: 54.1 % | V5: 2018 | W5: 9. | X5: IPV | Y5: 18.
B6: 2019 | V6: 2019
B7: 2020 | C7: 14. | D7: SiiPe | E7: 24 | F7: 98 | G7: 153 | H7: 64.1 % | I7: 3 | J7: 4 | K7: 75.0 % | L7: 0 | M7: 2 | N7: 0.0 % | O7: 0 | P7: 0 | Q7: 0.0 % | R7: 101 | S7: 159 | T7: 63.5 % | V7: 2020 | W7: 14. | X7: SiiPe | Y7: 6.
B8: 2021 | C8: 14. | D8: SiiPe | E8: 24 | F8: 29 | G8: 43 | H8: 67.4 % | I8: 86 | J8: 126 | K8: 68.3 % | L8: 6 | M8: 9 | N8: 66.7 % | O8: 3 | P8: 5 | Q8: 60.0 % | R8: 124 | S8: 183 | T8: 67.8 % | V8: 2021 | W8: 14. | X8: SiiPe | Z8: 6. | AC8: 30.
B9: 2022 | C9: 6. | D9: JoMa | E9: 20 | F9: 22 | G9: 59 | H9: 37.3 % | I9: 20 | J9: 33 | K9: 60.6 % | L9: 6 | M9: 8 | N9: 75.0 % | O9: 2 | P9: 7 | Q9: 28.6 % | R9: 50 | S9: 107 | T9: 46.7 % | V9: 2022 | W9: 6. | X9: JoMa
B10: Yhteensä | E10: =SUM(E4:E9) -> 130 | F10: =SUM(F4:F9) -> 285 | G10: =SUM(G4:G9) -> 511 | H10: =PRODUCT(F10/G10) -> 55.8 % | I10: =SUM(I4:I9) -> 141 | J10: =SUM(J4:J9) -> 212 | K10: =PRODUCT(I10/J10) -> 66.5 % | L10: =SUM(L4:L9) -> 35 | M10: =SUM(M4:M9) -> 63 | N10: =PRODUCT(L10/M10) -> 55.6 % | O10: =SUM(O4:O9) -> 16 | P10: =SUM(P4:P9) -> 41 | Q10: =PRODUCT(O10/P10) -> 39.0 % | R10: =SUM(R4:R9) -> 477 | S10: =SUM(S4:S9) -> 827 | T10: =PRODUCT(R10/S10) -> 57.7 %
